{"text_format":"1","workbook":"xlsx","n_sheets":3,"sheets":["Relació de despeses","Relació d'ingressos ","despeses i ingressos"],"not_rendered":{"charts":0,"images":2,"macros":1,"external_links":0,"defined_names":8,"comments":3,"pivot_tables":0},"unopened":[],"bounds":{"document_bytes":16777216,"sheet_cells":100000,"rows_first":2000,"rows_last":500,"rows_between":2000,"halvings":0,"cell_chars":16384,"cell_head_chars":4096},"cells_cut":0,"cells_raw":0,"read":"whole","date_system":"1900"}

{"sheet":"Relació de despeses","index":0,"n_rows":123,"n_cols":10,"rows_kept":123,"cut":false,"hidden":false,"merged":[[29,0,29,10],[121,0,121,11],[122,0,122,11],[94,0,95,10],[108,0,108,10],[100,4,101,10],[110,0,110,11],[111,0,111,11],[113,0,113,10],[114,0,114,11],[115,0,115,11],[116,0,116,11],[117,0,117,11],[118,0,118,11],[119,0,119,10],[120,0,120,11],[112,0,112,11],[99,1,99,2],[107,0,107,10],[41,0,41,6],[41,9,41,10],[42,0,42,10],[43,9,43,10],[44,9,44,10],[26,9,26,10],[27,0,27,6],[27,9,27,10],[18,9,18,10],[19,9,19,10],[20,9,20,10],[21,0,21,6],[21,9,21,10],[22,0,22,10],[23,9,23,10],[24,9,24,10],[25,9,25,10],[3,0,3,1],[7,1,8,1],[7,0,8,0],[6,0,6,4],[0,0,0,10],[4,0,4,1],[2,2,2,3],[3,2,3,3],[4,2,4,3],[2,0,2,1],[2,4,2,6],[3,4,3,6],[4,4,4,6],[7,2,8,2],[2,7,2,8],[3,7,3,8],[8,9,8,10],[7,9,7,10],[4,7,4,8],[28,0,28,2],[28,3,28,6],[28,9,28,10],[91,0,91,5],[91,9,91,10],[93,0,93,10],[103,0,103,10],[105,0,105,10],[106,0,106,10],[36,0,36,10],[37,9,37,10],[38,9,38,10],[39,9,39,10],[40,9,40,10],[30,0,30,10],[31,9,31,10],[34,9,34,10],[35,0,35,6],[35,9,35,10],[45,9,45,10],[46,9,46,10],[47,0,47,6],[47,9,47,10],[48,0,48,10],[16,0,16,10],[17,9,17,10],[7,3,7,4],[15,9,15,10],[15,0,15,6],[11,9,11,10],[12,9,12,10],[13,9,13,10],[10,0,10,10],[14,9,14,10],[9,0,9,10],[54,0,54,10],[55,9,55,10],[56,9,56,10],[57,9,57,10],[58,9,58,10],[49,9,49,10],[50,9,50,10],[51,9,51,10],[52,9,52,10],[53,0,53,6],[53,9,53,10],[63,9,63,10],[64,9,64,10],[65,0,65,6],[65,9,65,10],[66,0,66,10],[59,0,59,6],[59,9,59,10],[60,0,60,10],[61,9,61,10],[62,9,62,10],[72,0,72,10],[73,9,73,10],[74,9,74,10],[75,9,75,10],[76,9,76,10],[67,9,67,10],[68,9,68,10],[69,9,69,10],[70,9,70,10],[71,0,71,6],[71,9,71,10],[81,9,81,10],[82,9,82,10],[83,0,83,6],[83,9,83,10],[84,0,84,10],[77,0,77,6],[77,9,77,10],[78,0,78,10],[79,9,79,10],[80,9,80,10],[90,0,90,2],[90,3,90,6],[90,9,90,10],[85,9,85,10],[86,9,86,10],[87,9,87,10],[88,9,88,10],[89,0,89,6],[89,9,89,10]]}
["Relació classificada de totes les despeses realitzades per a l'execució de l'activitat  subvencionada"]
[]
["Persona física/jurídica beneficiària:         ",null,null,null,"Import del cost total del projecte:",null,null,null,null,"euros"]
["Codi de subvenció:",null,null,null,"Import de la subvenció atorgada:",null,null,null,null,"euros"]
["Nom del projecte subvencionat:",null,null,null,"Període d'execució del projecte subvencionat:",null,null,null,null,"a"]
[]
["Despeses del projecte/activitat/servei subvencionat (*)"]
["Núm. d'ordre (0)","Número de document: justificants despesa personal (1), factura o rebut/tiquet(2)","Concepte de la factura / \ndocument probatori equivalent","Emissor/a de la factura",null,"Data d'emissió","Import total de la factura","Import imputable (dedicat) al projecte (3)","Import imputable a la subvenció municipal (4)","Observacions"]
[null,null,null,"NIF","Nom","dd/mm/aaaa","euros","euros","euros"]
["DESPESES DIRECTES (Aquelles que s'identifiquen directament amb el projecte)"]
["D.1  Nòmines i seguretat social IRPF (règim general o règim d’autònoms) del personal propi  vinculat al projecte (màxim 40% subvenció)"]
[]
[]
[]
[]
["Subtotal D.1",null,null,null,null,null,null,{"$f":"SUM(H12:H15)","v":0},{"$f":"SUM(I12:I15)","v":0}]
["D.2 Rendiments anuals nets de l’empresari/a individual (veure 13.2 bases) (màxim 40% subvenció)"]
[]
[]
[]
[]
["Subtotal D.2",null,null,null,null,null,null,{"$f":"SUM(H18:H21)","v":0},{"$f":"SUM(I18:I21)","v":0}]
["D.3  Treballs realitzats per professionals i empreses externes directament vinculades al projecte"]
[]
[]
[]
[]
["Subtotal D.3",null,null,null,null,null,null,{"$f":"SUM(H24:H27)","v":0},{"$f":"SUM(I24:I27)","v":0}]
["TOTAL DESPESES DIRECTES ",null,null,"TOTAL DESPESES DIRECTES",null,null,null,{"$f":"+H16+H22+H28","v":0},{"$f":"+I16+I22+I28","v":0}]
["DESPESES INDIRECTES (no es poden assignar directament al projecte sense fer servir algun % d'assignació) (màxim 10% de subvenció)"]
["I.1 Personal de suport al projecte (Nòmines i seguretat social)"]
[]
[]
[]
[]
["Subtotal I1",null,null,null,null,null,null,{"$f":"SUM(H32:H35)","v":0},{"$f":"SUM(I32:I35)","v":0}]
["I.2  Assegurances"]
[]
[]
[]
[]
["Subtotal I2",null,null,null,null,null,null,{"$f":"SUM(H38:H41)","v":0},{"$f":"SUM(I38:I41)","v":0}]
["I.3  Amortització"]
[]
[]
[]
[]
["Subtotal I3",null,null,null,null,null,null,{"$f":"SUM(H44:H47)","v":0},{"$f":"SUM(I44:I47)","v":0}]
["I.4  Lloguer de béns immobles"]
[]
[]
[]
[]
["Subtotal I4",null,null,null,null,null,null,{"$f":"SUM(H50:H53)","v":0},{"$f":"SUM(I50:I53)","v":0}]
["I.5  Adquisició de materials i béns consumibles parcialment imputables al projecte"]
[]
[]
[]
[]
["Subtotal I5",null,null,null,null,null,null,{"$f":"SUM(H56:H59)","v":0},{"$f":"SUM(I56:I59)","v":0}]
["I.6  Manteniment d’edificis i/o instal·lacions"]
[]
[]
[]
[]
["Subtotal I6",null,null,null,null,null,null,{"$f":"SUM(H62:H65)","v":0},{"$f":"SUM(I62:I65)","v":0}]
["I.7  Comunicacions (telèfon, correus, connexió a internet)"]
[]
[]
[]
[]
["Subtotal I7",null,null,null,null,null,null,{"$f":"SUM(H68:H71)","v":0},{"$f":"SUM(I68:I71)","v":0}]
["I.8  Despeses financeres"]
[]
[]
[]
[]
["Subtotal I8",null,null,null,null,null,null,{"$f":"SUM(H74:H77)","v":0},{"$f":"SUM(I74:I77)","v":0}]
["I.9  Subministraments "]
[]
[]
[]
[]
["Subtotal I9",null,null,null,null,null,null,{"$f":"SUM(H80:H83)","v":0},{"$f":"SUM(I80:I83)","v":0}]
["I.10  Treball realitzat per altres empreses, parcialment imputables al projecte (neteja, seguretat...)"]
[]
[]
[]
[]
["Subtotal I10",null,null,null,null,null,null,{"$f":"SUM(H86:H89)","v":0},{"$f":"SUM(I86:I89)","v":0}]
["TOTAL DESPESES INDIRECTES ",null,null,"TOTAL DESPESES INDIRECTES",null,null,null,{"$f":"+H36+H42+H48+H54+H60+H66+H72+H78+H84+H90","v":0},{"$f":"+I36+I42+I48+I54+I60+I66+I72+I78+I84+I90","v":0}]
["TOTAL DESPESES",null,null,null,null,null,"TOTAL",{"$f":"H29+H91","v":0},{"$f":"I29+I91","v":0}]
[]
["El Sr./Sra. (indicar el nom i cognoms de la persona representant que signa la justificació)  amb DNI/NIE (indicar el núm. DNI) en qualitat de persona física beneficiària o representant legal de la persona jurídica beneficiària (indicar nom i cognoms) amb NIF (indicar núm DNI)."]
["CERTIFICA que les despeses imputades al projecte/activitat/servei subvencionat han estat efectivament efectuades; que custodiarà la documentació suport que ho acredita; que  aquesta documentació es troba a disposició de l'Ajuntament de Barcelona o dels altres ens municipals en els arxius d'aquesta organització, durant un període mínim de 4 anys a comptar des de la data de presentació de la present justificació."]
[]
[]
[]
[]
[null,"Població i data: ",null,null,"Signatura i segell (en cas de registre físic)"]
[null,null,null,null,"En cas de presentació de la documentació per via telemàtica, cal imprimir/ desar els fulls en format pdf i signar-los electrònicament mitjançant certificat digital (no serà vàlida la signatura escanejada)."]
[]
["Notes:"]
["(*) S'han de relacionar totes les despeses del projecte/activitat/servei subvencionat. En el cas que el nombre de files de cada concepte sigui insuficient podeu inserir línies dins del mateix concepte seleccionant una cel·la verda i fent clic sobre el botó d'inserir línia."]
["(0) El número d'ordre ha de ser correlatiu començant per D.1.1, D1.2, D.1.3, D2.4, etc."]
["(1) Respecte a les despeses de recursos humans, pot ser subvencionable el cost total salarial mensual, que correspon a la suma de la retribució bruta que apareix a la nòmina del treballador/a més la quota de l'empresa a la Seg. Social. Les despeses de personal es justifiquen amb la nòmina del treballador/a acompanyada dels corresponents RLC i RNT (anteriors TC1 i TC2) de la TGSS i el model 111 de l'IRPF."]
["(2) En el cas que el document justificatiu de la resta de despeses, no sigui una factura, sinó un altre document probatori equivalent, com un rebut o justificant (com per dietes o transport públic), indiqueu-lo en la columna \"observacions\""]
["(3) En el cas que un justificant inclogui conceptes que no tenen relació amb el projecte/activitat/servei per al qual s'ha atorgat la subvenció, aquí només s'ha d'indicar la part que realment s'ha dedicat al projecte."]
["(4) En aquesta columna s'ha d'indicar l'import total o parcial de la factura  que s'imputa a la subvenció rebuda de l'Ajuntament de Barcelona. El total imputat, en aquesta columna, ha de ser igual  a l'import de la subvenció rebuda."]
[]
["Modalitat Aa: Creació de noves cooperatives i transformació, d’altres formes jurídiques pre-existents, en cooperatives, incloses la creació de noves cooperatives procedents de l'agrupació d'empreses individuals"]
["S'extableix com a obligació de la subvenció la constitució de la cooperativa, registrada en el registre corresponent i l’alta censal, abans de la finalització del projecte subvencionat"]
["1.  La quantia de la subvenció atorgada no superarà el 80% de la despesa total del projecte a subvencionar. "]
["2.  L'import màxim de subvenció per a la modalitat \"a\" de l’àmbit temàtic de Creació i consolidació (Aa) és 8.000€."]
["3.  En el cas que la sol·licitud presentada sobrepassi l’import màxim, es considerarà com a import sol·licitat el màxim de l'establert a la convocatòria."]
["4.  Es limita amb un màxim del 40% l’import de la subvenció per a despeses de personal propi que participa de forma directa i degudament al projecte."]
["5.  Només amb caràcter excepcional, els/les empresaris/ies individuals que no tinguin persones treballadores en plantilla podran acreditar els seus treballs mitjançant una declaració responsable acompanyada de les declaracions IRPF (model 130)  de l'exercici corrent. El preu/hora imputat al projecte subvencionat no podrà superar la quantitat resultant de dividir els rendiments anuals nets de l’empresari/a individual per 1800."]
["6. En cap cas es consideraran despeses subvencionables:\n> Els impostos indirectes quan siguin susceptibles de recuperació o compensació.\n> Les despeses d'inversió, incloses les adquisicions de béns mobles.\n> Les despeses realitzades amb data anterior a l'inici del projecte i data posterior a la finalització del projecte.\n> Altres despeses que s'indiquin a la convocatòria."]
["7. Són imputables en aquesta modalitat les despeses indirectes, detallades en l’apartat 13.3. de les bases reguladores; amb un màxim del 10% de l'import de la subvenció."]
["8. La retribució de les persones contractades en el marc del projecte subvencionat no pot ser inferior al Salari Mínim Interprofessional (SMI), ni a l'estipulada al corresponent conveni o marc normatiu de referència (punt 7de les bases 2021: requisits dels projectes). D'acord amb el Reial decret 817/2021, de 28 de setembre, pel qual es fixa el salari mínim interprofessional per al 2021, la quantia mínima anual és de 13.510 euros.Aquest import pot ser modificat, d'acord amb la normativa vigent en el moment de la seva aplicació. "]
["9.  Els projectes subvencionats han de formentar activitats d'interès públic o social, les quals han de ser gratuïtes per a les persones participants o en cap cas el preu ha de suposar un obstacle per a la seva participació, buscant altres formes d'accés per a persones amb dificultats econòmiques. En el cas que hi hagi algun tipus de lucre, haurà de revertir en les pròpies activitats subvencionades."]
["10. L'Ajuntament de Barcelona i les seves entitats municipals en cap cas subvencionaran el mateix projecte, executat durant el mateix període, per cap altre procediment de concessió que no sigui el regulat per les bases reguladores."]
["11. El/la beneficiari/ària no podrà alterar en cap cas el destí de les subvencions concedides."]

{"sheet":"Relació d'ingressos ","index":1,"n_rows":79,"n_cols":10,"rows_kept":79,"cut":false,"hidden":false,"merged":[[74,5,75,9],[23,6,23,9],[19,6,19,9],[18,6,18,9],[17,6,17,9],[47,6,47,9],[46,6,46,9],[48,6,48,9],[44,6,44,9],[43,6,43,9],[42,6,42,9],[49,6,49,9],[58,6,58,9],[16,6,16,9],[22,6,22,9],[26,6,26,9],[25,6,25,9],[41,6,41,9],[40,6,40,9],[30,6,30,9],[44,0,44,3],[38,0,38,3],[32,0,32,3],[14,6,14,9],[20,6,20,9],[28,6,28,9],[38,6,38,9],[37,6,37,9],[32,6,32,9],[31,6,31,9],[26,0,26,3],[20,0,20,3],[36,6,36,9],[34,6,34,9],[24,6,24,9],[29,6,29,9],[0,0,0,9],[9,0,9,9],[15,0,15,9],[7,6,8,9],[10,6,10,9],[7,0,8,0],[11,6,11,9],[13,6,13,9],[3,2,3,3],[2,2,2,3],[6,0,6,3],[4,2,4,3],[7,2,7,3],[7,1,8,1],[14,0,14,3],[56,0,56,3],[50,0,50,3],[53,6,53,9],[52,6,52,9],[56,6,56,9],[50,6,50,9],[73,1,73,3],[64,6,64,9],[59,6,59,9],[66,6,66,9],[60,6,60,9],[61,6,61,9],[62,6,62,9],[63,6,63,9],[66,0,66,3],[65,0,65,3],[69,0,69,9],[70,0,71,9],[65,6,65,9]]}
["Detall de tots els ingressos obtinguts i aportacions del propi beneficiari per a l'execució de l'activitat subvencionada"]
[]
[null,"Nom de la persona física/jurídica beneficiària:        ",{"$f":"IF('Relació de despeses'!C3:D3<>\"\",'Relació de despeses'!C3:D3,\"\")","v":""},null,"Import del cost total del projecte :",null,null,{"$f":"IF(+'Relació de despeses'!H3=\"\",\"\",+'Relació de despeses'!H3)","v":""},"euros"]
[null,"Codi de subvenció",{"$f":"IF('Relació de despeses'!C4:D4<>\"\",'Relació de despeses'!C4:D4,\"\")","v":""},null,"Import de la subvenció atorgada:",null,null,{"$f":"IF(+'Relació de despeses'!H4=\"\",\"\",+'Relació de despeses'!H4)","v":""},"euros"]
[null,"Nom del projecte subvencionat",{"$f":"IF('Relació de despeses'!C5:D5<>\"\",'Relació de despeses'!C5:D5,\"\")","v":""},null,"Període d'execució del projecte subvencionat:",null,null,{"$f":"IF(+'Relació de despeses'!H5=\"\",\"\",+'Relació de despeses'!H5)","v":""},"a",{"$f":"IF(+'Relació de despeses'!K5=\"\",\"\",+'Relació de despeses'!K5)","v":""}]
[]
["Ingressos del projecte/activitat/servei subvencionat"]
["núm. d'ordre (0)","Concepte de l'ingrés","Emissor/a de l'ingrés",null,"Data de cobrament\n(dd/mm/aaaa)","Import","Observacions"]
[null,null,"NIF","Nom","(1)","euros"]
["A. Subvenció municipal "]
[]
[]
[]
[]
[null,null,null,null,"Subtotal A",{"$f":"SUM(F11:F14)","v":0}]
["B. Subvencions d'altres administracions"]
[]
[]
[]
[]
[null,null,null,null,"Subtotal B",{"$f":"SUM(F17:F20)","v":0}]
["C. Subvencions d'ens privats"]
[]
[]
[]
[]
[null,null,null,null,"Subtotal C",{"$f":"SUM(F23:F26)","v":0}]
["D. Recursos propis de l'organització aplicats al projecte"]
[]
[]
[]
[]
[null,null,null,null,"Subtotal D",{"$f":"SUM(F29:F32)","v":0}]
["E. Taquillatge"]
[]
[]
[]
[]
[null,null,null,null,"Subtotal E",{"$f":"SUM(F35:F38)","v":0}]
["F. Quotes d'inscripció"]
[]
[]
[]
[]
[null,null,null,null,"Subtotal F",{"$f":"SUM(F41:F44)","v":0}]
["G. Venda de Productes"]
[]
[]
[]
[]
[null,null,null,null,"Subtotal G",{"$f":"SUM(F47:F50)","v":0}]
["H. Publicitat i/o Esponsorització"]
[]
[]
[]
[]
[null,null,null,null,"Subtotal H",{"$f":"SUM(F53:F56)","v":0}]
["I. Altres ingressos"]
[]
[]
[]
[]
[]
[]
[]
[null,null,null,null,"Subtotal I",{"$f":"SUM(F59:F65)","v":0}]
["Total INGRESSOS",null,null,null,"TOTAL",{"$f":"+F15+F21+F27+F33+F39+F45+F51+F57+F66","v":0}]
[]
[]
[{"$f":"'Relació de despeses'!A94:K94","v":"El Sr./Sra. (indicar el nom i cognoms de la persona representant que signa la justificació)  amb DNI/NIE (indicar el núm. DNI) en qualitat de persona física beneficiària o representant legal de la persona jurídica beneficiària (indicar nom i cognoms) amb NIF (indicar núm DNI)."}]
["CERTIFICA que els ingressos imputats al projecte/activitat/servei subvencionat han estat efectivament ingressats; que custodiarà la documentació suport que ho acredita; que  aquesta documentació es troba a disposició de l'Ajuntament de Barcelona o dels altres ens municipals en els arxius d'aquesta organització, durant un període mínim de 4 anys a comptar des de la data de presentació de la present justificació."]
[]
[]
[null,"Població i data: ",null,null,null,"Signatura i segell (en cas de registre físic)"]
[null,null,null,null,null,"En cas de presentació de la documentació per via telemàtica, cal imprimir/ desar els fulls en format pdf i signar-los electrònicament mitjançant certificat digital (no serà vàlida la signatura escanejada)."]
[]
[null,"Nota:"]
[null,"(0) El número d'ordre ha de ser correlatiu començant pel número A1, A2, A3, B4, etc."]
[null,"(1) En cas que l'ingrés estigui pendent cobrament, indicar \"P. Cobrament\" "]

{"sheet":"despeses i ingressos","index":2,"n_rows":76,"n_cols":11,"rows_kept":76,"cut":false,"hidden":false,"merged":[[37,1,37,2],[33,0,33,9],[17,0,18,1],[38,4,39,10],[46,0,46,10],[47,0,47,10],[41,0,41,10],[42,0,42,10],[43,0,43,10],[44,0,44,10],[45,0,45,10],[4,5,4,6],[5,0,5,1],[5,2,5,3],[5,5,5,6],[9,6,9,7],[6,0,6,1],[6,2,6,3],[9,0,9,1],[4,0,4,1],[4,2,4,3],[10,0,11,1],[34,0,35,9],[14,1,15,1],[14,2,15,2],[14,3,15,3],[24,6,24,7],[25,6,25,7],[25,8,25,9],[17,2,18,2],[17,3,18,3],[10,8,11,8],[10,9,11,9],[10,2,11,2],[10,3,11,3],[10,6,11,7],[14,4,15,4]]}
[]
[]
["Estat de les despeses realitzades i dels ingressos obtinguts per a l'execució de l'activitat subvencionada (*)"]
[]
["Nom de la persona física/jurídica beneficiària:         ",null,{"$f":"IF('Relació de despeses'!C3:D3<>\"\",'Relació de despeses'!C3:D3,\"\")","v":""},null,null,"Import del cost total del projecte:",null,{"$f":"'Relació d''ingressos '!H3","v":""},"euros"]
["Codi de subvenció:",null,{"$f":"IF('Relació de despeses'!C4:D4<>\"\",'Relació de despeses'!C4:D4,\"\")","v":""},null,null,"Import de la subvenció atorgada:",null,{"$f":"'Relació d''ingressos '!H4","v":""},"euros"]
["Nom del projecte subvencionat:",null,{"$f":"IF('Relació de despeses'!C5:D5<>\"\",'Relació de despeses'!C5:D5,\"\")","v":""},null,null,"Període d'execució del projecte subvencionat:",null,null,{"$f":"'Relació d''ingressos '!H5","v":""},"a",{"$f":"'Relació d''ingressos '!J5","v":""}]
[]
["SUBVENCIONS PER A L'ENFORTIMENT I REACTIVACIÓ DE L'ECONOMIA SOCIAL I SOLIDÀRIA 2021"]
["DESPESES PREVISTES",null,"import en euros",null,"import en euros",null,"INGRESSOS PREVISTOS",null,"import en euros"]
["Despeses directes \n(aquelles que s'identifiquen directament amb el projecte)",null,"Previsió inicial o reformulada ja aprovada (1)","Despeses realitzades (2)","Diferència\n",null,"Ingressos previstos",null,"Previsió inicial (1)","Ingressos obtinguts (3)"]
[null,null,null,null,"(2-1)"]
["Aa","D.1  Nòmines i seguretat social IRPF (règim general o règim d’autònoms) del personal propi  vinculat al projecte (màxim 40% subvenció)",null,{"$f":"'Relació de despeses'!H16","v":0},{"$f":"+C13-D13","v":0},null,"A.","Subvenció municipal (import sol·licitat a la instància/atorgat)",null,{"$f":"'Relació d''ingressos '!F15","v":0}]
[null,"D.2 Rendiments anuals nets de l’empresari/a individual (veure 13.2 bases) (màxim 40% subvenció)",null,{"$f":"'Relació de despeses'!H22","v":0},{"$f":"+C14-D14","v":0},null,"B.","Subvencions d'altres administracions",null,{"$f":"'Relació d''ingressos '!F21","v":0}]
[null,"D.3  Treballs realitzats per professionals i empreses externes directament vinculades al projecte",null,{"$f":"'Relació de despeses'!H28","v":0},{"$f":"+C15-D15","v":0},null,"C.","Subvencions d'ens privats",null,{"$f":"'Relació d''ingressos '!F27","v":0}]
[null,null,null,null,null,null,"D.","Recursos propis de l'organització aplicats al projecte",null,{"$f":"'Relació d''ingressos '!F33","v":0}]
[null,"Total Despeses Directes   ",{"$f":"SUM(C13:C16)","v":0},{"$f":"SUM(D13:D16)","v":0},{"$f":"SUM(E13:E16)","v":0},null,"E.","Taquillatge",null,{"$f":"'Relació d''ingressos '!F39","v":0}]
["Despeses indirectes (es podran assignar al projecte fent sevir un percentatge d’assignació) ",null,"Previsió inicial o reformulada ja aprovada (1)","Despeses realitzades (2)","Diferència\n",null,"F.","Quotes d'inscripció",null,{"$f":"'Relació d''ingressos '!F45","v":0}]
[null,null,null,null,"(2-1)",null,"G.","Venda de Productes",null,{"$f":"'Relació d''ingressos '!F51","v":0}]
[null,"I.1 Personal de suport al projecte subvencionat (Nòmines i seguretat social)",null,{"$f":"'Relació de despeses'!H36","v":0},{"$f":"+C20-D20","v":0},null,"H","Publicitat i/o Esponsorització",null,{"$f":"'Relació d''ingressos '!F57","v":0}]
[null,"I.2  Assegurances",null,{"$f":"'Relació de despeses'!H42","v":0},{"$f":"+C21-D21","v":0},null,"I.","Altres ingressos",null,{"$f":"'Relació d''ingressos '!F66","v":0}]
[null,"I.3  Amortització",null,{"$f":"'Relació de despeses'!H48","v":0},{"$f":"+C22-D22","v":0},null,null,"Total Ingressos",{"$f":"SUM(I13:I21)","v":0},{"$f":"SUM(J13:J21)","v":0}]
[null,"I.4  Lloguer de béns immobles",null,{"$f":"'Relació de despeses'!H54","v":0},0]
[null,"I.5  Adquisició de materials i béns consumibles parcialment imputables al projecte",null,{"$f":"'Relació de despeses'!H60","v":0},0]
[null,"I.6  Manteniment d’edificis i/o instal·lacions",null,{"$f":"'Relació de despeses'!H66","v":0},0,null,"Ingressos menys despeses ",null,{"$f":"+I22-C31","v":0},{"$f":"+J22-D31","v":0}]
[null,"I.7  Comunicacions (telèfon, correus, connexió a internet)",null,{"$f":"'Relació de despeses'!H72","v":0},0,null,"Desviació de Despeses (4)",null,"Desviació d'ingressos (4)"]
[null,"I.8  Despeses financeres",null,{"$f":"'Relació de despeses'!H78","v":0},0,null,"Import"," % ","Import","%"]
[null,"I.9  Subministraments ",null,{"$f":"'Relació de despeses'!H84","v":0},0,null,{"$f":"D31-C31","v":0},{"$f":"D31/C31","v":{"$error":"#DIV/0!"}},{"$f":"J22-I22","v":0},{"$f":"J22/I22","v":{"$error":"#DIV/0!"}}]
[null,"I.10  Treball realitzat per altres empreses, parcialment imputables al projecte subvencionable (neteja, seguretat...)",null,{"$f":"'Relació de despeses'!H90","v":0},{"$f":"+C29-D29","v":0},null,null,null,"% subvencionat inicialment o després de reformulació (5)",{"$f":"I13/I22","v":{"$error":"#DIV/0!"}}]
[null,"Total Despeses Indirectes   (Màx. 10% subv)",{"$f":"SUM(C20:C29)","v":0},{"$f":"SUM(D20:D29)","v":0},{"$f":"SUM(E20:E29)","v":0},null,null,null,"% subvencionat després de justificació (6)",{"$f":"+J13/J22","v":{"$error":"#DIV/0!"}}]
[null,"Total Despeses ",{"$f":"C17+C30","v":0},{"$f":"D17+D30","v":0},{"$f":"E17+E30","v":0}]
[]
[]
["El Sr./Sra. (indicar el nom i cognoms de la persona representant que signa la justificació)  amb DNI/NIE (indicar el núm. DNI) en qualitat de persona física beneficiària o representant legal de la persona jurídica beneficiària (indicar nom i cognoms) amb NIF (indicar núm DNI)."]
["CERTIFICA que els ingressos imputats al projecte/activitat/servei subvencionat han estat efectivament ingressats; que custodiarà la documentació suport que ho acredita; que  aquesta documentació es troba a disposició de l'Ajuntament de Barcelona o dels altres ens municipals en els arxius d'aquesta organització, durant un període mínim de 4 anys a comptar des de la data de presentació de la present justificació."]
[]
[]
[null,"Població i data: ",null,null,"Signatura i segell (en cas de registre físic)"]
[null,null,null,null,"En cas de presentació de la documentació per via telemàtica, cal imprimir/ desar els fulls en format pdf i signar-los electrònicament mitjançant certificat digital (no serà vàlida la signatura escanejada)."]
[]
["Notes:"]
["(*) Les columnes ombrejades en color  s'aniran emplenant automàticament a partir de les dades introduïdes en els documents de despeses -detall i ingressos-detall. Per tant, no imprimiu aquest full fins haver emplenat els altres."]
["(1) Previsió inicial o reformulació ja aprovada= S'han d'indicar la previsió inicial de despeses i d'ingressos segons allò que es va indicar al projecte original en el \"pla de viabilitat econòmica del projecte - pressupost general\" . En cas que ja s'hagi aprovat una reformulació, s'han d'indicar les quantitats reformulades. "]
["(2) Despeses reals = Cost real total del projecte subvencionat. Automàticament s'introduiran els subtotals de les despeses relacionades al full Despeses-detall."]
["(3) Ingresos reals = Total d'ingressos obtinguts per a la realització del projecte subvencionat. Automàticament s'introduiran els subtotals dels ingressos relacionats al full Ingressos-detall"]
["(4) Desviació: En el cas de les despeses, la desviació és la diferència entre despeses reals i la previsió inicial de despeses; i en el cas d'ingressos, la diferència entre els ingressos reals i la previsió inicial d'ingressos. "]
["(5) % finançament municipal inicial o després de reformulació = percentatge que suposen la subvencions municipal (A) respecte del  total d'ingressos del projecte subvencionat."]
["(6) % finançament municipal després de justificació = percentatge que suposa la subvenció municipal (A) respecte del  total d'ingressos del projecte subvencionat. En cas d'existir una desviació sempre s'ha de motivar."]
[]
[]
[]
[]
[]
[]
[]
[]
[]
[]
[]
[]
[]
[]
[]
[]
[]
[]
[]
[]
[]
[]
[]
[]
[]
[]
[]
[null,null,0]